[Event "Paracin Open 2022"]
[Site "Paracin"]
[Date "2022.07.09"]
[Round "3.5"]
[White "Djordjevic, Vuk"]
[Black "Koustav Chatterjee"]
[Result "0-1"]
[ECO "D00"]
[WhiteElo "2382"]
[BlackElo "2485"]
[Annotator "RC"]
[PlyCount "54"]
[EventDate "2022.07.08"]
[EventCountry "SRB"]
[SourceTitle "playchess.com"]
[Source "ChessBase"]
[SourceQuality "1"]
[TimeControl "5400+30"]

1. d4 {[%emt 0:06:06]} Nf6 {[%emt 0:00:06]} 2. Bg5 {[%emt 0:00:25]} d5 {[%emt 0:00:37]} 3. Bxf6 {[%emt 0:00:28]} gxf6 {[%emt 0:00:07]} 4. e3 {[%emt 0:01:53]} c5 {[%emt 0:00:45]} 5. dxc5 {[%emt 0:05:43]} Nc6 {[%emt 0:00:23]} 6. c4 {[%emt 0:07:26]} d4 {[%emt 0:01:53]} 7. exd4 {[%emt 0:00:55]} Qxd4 {[%emt 0:17:09]} 8. Nc3 {[%emt 0:05:08]} Qxc5 {[%emt 1:13:30]} 9. Nd5 {[%emt 0:06:45]} e6 {[%emt 0:00:00]} 10. Nc3 {[%emt 0:04:53]} Bg7 {[%emt 0:00:00]} 11. Nf3 {[%emt 0:10:10]} f5 {[%emt 0:00:00]} 12. Be2 {[%emt 0:02:08]} O-O {[%emt 0:00:00]} 13. O-O {[%emt 0:05:05]} e5 {[%emt 0:00:00]} 14. Nd2 {[%emt 0:15:32]} Rd8 {[%emt 0:00:00]} 15. Nd5 {[%emt 0:11:01]} Be6 {[%emt 0:00:00]} 16. Nb3 {[%emt 0:00:46]} Qf8 {[%emt 0:00:00]} 17. Qd2 {[%emt 0:03:07]} a5 {[%emt 0:00:00]} 18. Rad1 {[%emt 0:02:08]} a4 {[%emt 0:00:00]} 19. Na1 {[%emt 0:01:00]} b5 {[%emt 0:00:00]} 20. b3 {[%emt 0:02:49]} axb3 {[%emt 0:00:46]} 21. Nxb3 {[%emt 0:01:31]} bxc4 {[%emt 0:00:40]} 22. Bxc4 {[%emt 0:00:07]} Bxd5 {[%emt 0:00:04]} 23. Bxd5 {[%emt 0:00:12]} Ne7 {[%emt 0:01:44]} 24. Bxf7+ {[%emt 0:00:23]} Kxf7 {[%emt 0:00:05]} 25. Qe2 {[%emt 0:00:21]} Kg8 {[%emt 0:00:30]} 26. Nc5 {[%emt 0:00:47]} Qf7 {[%emt 0:00:37]} 27. a4 {[%emt 0:00:36]} Nd5 {[%emt 0:00:33]} 0-1

[Event "Paracin Open 2022"]
[Site "Paracin"]
[Date "2022.07.09"]
[Round "3.6"]
[White "Erdogmus, Yagiz Kaan"]
[Black "Suleymenov, Alisher"]
[Result "1/2-1/2"]
[ECO "D24"]
[WhiteElo "2373"]
[BlackElo "2467"]
[Annotator "RC"]
[PlyCount "40"]
[EventDate "2022.07.08"]
[EventCountry "SRB"]
[SourceTitle "playchess.com"]
[Source "ChessBase"]
[SourceQuality "1"]
[TimeControl "5400+30"]

1. d4 {[%emt 0:00:01]} d5 {[%emt 0:11:13]} 2. c4 {[%emt 0:04:30]} dxc4 {[%emt 0:01:53]} 3. Nf3 {[%emt 0:00:15]} Nf6 {[%emt 0:00:05]} 4. Nc3 {[%emt 0:01:31]} a6 {[%emt 0:03:02]} 5. e4 {[%emt 0:10:47]} b5 {[%emt 0:00:06]} 6. e5 {[%emt 0:00:13]} Nd5 {[%emt 0:00:06]} 7. a4 {[%emt 0:00:10]} e6 {[%emt 0:00:04]} 8. axb5 {[%emt 0:00:59]} Bb4 {[%emt 0:00:05]} 9. Bd2 {[%emt 0:06:04]} Nb6 {[%emt 0:00:05]} 10. bxa6 {[%emt 0:03:46]} O-O {[%emt 0:06:57]} 11. a7 {[%emt 0:06:56]} Nc6 {[%emt 0:01:54]} 12. Nb5 {[%emt 0:02:46]} Qd7 {[%emt 0:06:22]} 13. Be2 {[%emt 0:02:41]} Bb7 {[%emt 0:20:30]} 14. O-O {[%emt 0:05:19]} Bxd2 {[%emt 0:00:46]} 15. Qxd2 {[%emt 0:00:15]} Ne7 {[%emt 0:04:26]} 16. Ra5 {[%emt 0:05:08]} Bxf3 {[%emt 0:07:59]} 17. Bxf3 {[%emt 0:00:37]} c6 {[%emt 0:00:04]} 18. Nd6 {[%emt 0:47:32]} Rxa7 {[%emt 0:00:13]} 19. Rfa1 {[%emt 0:00:00]} Rxa5 {[%emt 0:04:43]} 20. Qxa5 {[%emt 0:00:00]} Nbc8 {[%emt 0:01:29]} 1/2-1/2

[Event "Paracin Open 2022"]
[Site "Paracin"]
[Date "2022.07.09"]
[Round "3.7"]
[White "Sharan, Rao"]
[Black "Agmanov, Zhandos"]
[Result "*"]
[ECO "D04"]
[WhiteElo "2342"]
[BlackElo "2459"]
[Annotator "RC"]
[PlyCount "52"]
[EventDate "2022.07.08"]
[EventCountry "SRB"]
[SourceTitle "playchess.com"]
[Source "ChessBase"]
[SourceQuality "1"]
[TimeControl "5400+30"]

1. Nf3 {[%emt 0:00:03]} Nf6 {[%emt 0:00:44]} 2. b3 {[%emt 1:31:27]} g6 {[%emt 0:00:48]} 3. Bb2 {[%emt 0:00:04]} Bg7 {[%emt 0:00:07]} 4. e3 {[%emt 0:00:04]} c5 {[%emt 0:00:29]} 5. Be2 {[%emt 0:00:18]} O-O {[%emt 0:00:15]} 6. O-O {[%emt 0:00:30]} d5 {[%emt 0:00:06]} 7. d4 {[%emt 0:00:09]} cxd4 {[%emt 0:00:19]} 8. Nxd4 {[%emt 0:00:40]} Re8 {[%emt 0:00:41]} 9. c4 {[%emt 0:00:43]} e5 {[%emt 0:00:07]} 10. Nf3 {[%emt 0:00:20]} Nc6 {[%emt 0:00:17]} 11. cxd5 {[%emt 0:02:38]} Nxd5 {[%emt 0:00:47]} 12. Na3 {[%emt 0:01:48]} Bf5 {[%emt 0:19:34]} 13. Bc4 {[%emt 0:00:16]} Nb6 {[%emt 0:11:00]} 14. Bb5 {[%emt 0:03:50]} Qe7 {[%emt 0:02:12]} 15. Bxc6 {[%emt 0:12:03]} bxc6 {[%emt 0:02:13]} 16. Qc1 {[%emt 0:00:05]} Rac8 {[%emt 0:02:54]} 17. Re1 {[%emt 0:07:18]} c5 {[%emt 0:04:08]} 18. e4 {[%emt 0:05:42]} Bg4 {[%emt 0:04:23]} 19. Qc3 {[%emt 0:06:09]} Bxf3 {[%emt 0:06:31]} 20. Qxf3 {[%emt 0:00:06]} c4 {[%emt 0:00:05]} 21. Nxc4 {[%emt 0:13:01]} Nxc4 {[%emt 0:00:05]} 22. bxc4 {[%emt 0:00:04]} Rxc4 {[%emt 0:00:10]} 23. Rec1 {[%emt 0:02:20]} Rec8 {[%emt 0:01:33]} 24. Qb3 {[%emt 0:01:58]} Qe6 {[%emt 0:06:42]} 25. Rc2 {[%emt 0:42:47]} Rc3 26. Rxc3 {[%emt 0:00:00]} Qc4 {[%emt 0:01:21]} *

[Event "Paracin Open 2022"]
[Site "Paracin"]
[Date "2022.07.09"]
[Round "3.8"]
[White "Sturt, Raven"]
[Black "Damjanovic, Vuk"]
[Result "1-0"]
[ECO "D37"]
[WhiteElo "2457"]
[BlackElo "2393"]
[Annotator "RC"]
[PlyCount "105"]
[EventDate "2022.07.08"]
[EventCountry "SRB"]
[SourceTitle "playchess.com"]
[Source "ChessBase"]
[SourceQuality "1"]
[TimeControl "5400+30"]

1. d4 {[%emt 0:00:02]} Nf6 {[%emt 0:03:22]} 2. c4 {[%emt 0:00:06]} e6 {[%emt 0:00:41]} 3. Nf3 {[%emt 0:00:05]} d5 {[%emt 0:00:45]} 4. Nc3 {[%emt 0:00:06]} a6 {[%emt 0:01:15]} 5. c5 {[%emt 0:00:14]} b6 {[%emt 0:01:34]} 6. cxb6 {[%emt 0:00:06]} c5 {[%emt 0:01:24]} 7. Bf4 {[%emt 0:00:05]} Bd6 {[%emt 0:01:20]} 8. Bxd6 {[%emt 0:00:08]} Qxd6 {[%emt 0:00:08]} 9. dxc5 {[%emt 0:00:02]} Qxc5 {[%emt 0:00:19]} 10. Qd4 {[%emt 0:00:05]} Qd6 {[%emt 0:00:29]} 11. e3 {[%emt 0:01:19]} Nbd7 {[%emt 0:00:36]} 12. Na4 {[%emt 0:02:54]} Bb7 {[%emt 0:01:10]} 13. Be2 {[%emt 0:08:34]} e5 {[%emt 0:00:27]} 14. Qc3 {[%emt 0:02:43]} Bc6 {[%emt 0:04:42]} 15. Qb3 {[%emt 0:01:04]} Ke7 {[%emt 0:01:46]} 16. O-O {[%emt 0:01:00]} Bxa4 {[%emt 0:00:44]} 17. Qxa4 {[%emt 0:00:11]} Rhb8 {[%emt 0:00:05]} 18. b4 {[%emt 0:05:25]} Ne4 {[%emt 0:19:20]} 19. Rac1 {[%emt 0:04:43]} Rxb6 {[%emt 0:05:06]} 20. a3 {[%emt 0:01:22]} a5 {[%emt 0:15:55]} 21. Rfd1 {[%emt 0:03:42]} Rbb8 {[%emt 0:03:00]} 22. Qb3 {[%emt 0:08:55]} Nef6 {[%emt 0:03:45]} 23. b5 {[%emt 0:00:28]} Rc8 {[%emt 0:02:31]} 24. Qb2 {[%emt 0:00:49]} a4 {[%emt 0:07:00]} 25. h3 {[%emt 0:05:14]} Kf8 {[%emt 0:04:19]} 26. Rc6 {[%emt 0:07:31]} Rxc6 {[%emt 0:00:27]} 27. bxc6 {[%emt 0:00:02]} Qxc6 {[%emt 0:00:31]} 28. Nxe5 {[%emt 0:00:14]} Nxe5 {[%emt 0:01:34]} 29. Qxe5 {[%emt 0:00:03]} Qc5 {[%emt 0:01:13]} 30. Qb2 {[%emt 0:01:01]} Qd6 {[%emt 0:01:09]} 31. Rb1 {[%emt 0:03:11]} Rc8 {[%emt 0:03:36]} 32. Qb7 {[%emt 0:45:06]} Qc7 {[%emt 0:03:30]} 33. Qb4+ {[%emt 0:00:00]} Qe7 {[%emt 0:00:20]} 34. Qxa4 {[%emt 0:00:00]} Ne4 {[%emt 0:00:02]} 35. Bg4 {[%emt 0:00:00]} Rd8 {[%emt 0:00:36]} 36. Rb2 {[%emt 0:00:00]} Kg8 {[%emt 0:01:48]} 37. Qb3 {[%emt 0:00:00]} Qe5 {[%emt 0:02:11]} 38. Qb6 {[%emt 0:00:00]} Ra8 {[%emt 0:01:19]} 39. Qc6 {[%emt 0:00:00]} Rd8 {[%emt 0:01:06]} 40. Qb6 {[%emt 0:00:00]} Ra8 {[%emt 0:00:02]} 41. Qb7 {[%emt 0:00:00]} Rd8 {[%emt 0:00:41]} 42. a4 {[%emt 0:00:00]} h5 {[%emt 0:00:26]} 43. Bf3 {[%emt 0:00:00]} Ng5 {[%emt 0:01:12]} 44. Be2 {[%emt 0:00:00]} d4 {[%emt 0:01:10]} 45. Rb5 {[%emt 0:00:00]} Qf6 {[%emt 0:00:23]} 46. exd4 {[%emt 0:00:00]} Rxd4 {[%emt 0:00:42]} 47. a5 {[%emt 0:00:00]} Re4 {[%emt 0:03:23]} 48. Qb8+ {[%emt 0:00:00]} Kh7 {[%emt 0:00:01]} 49. Bd3 {[%emt 0:00:00]} Qa1+ {[%emt 0:00:01]} 50. Kh2 {[%emt 0:00:00]} Qf6 {[%emt 0:00:03]} 51. Rxg5 {[%emt 0:00:00]} Qxg5 {[%emt 0:00:01]} 52. Bxe4+ {[%emt 0:00:00]} g6 {[%emt 0:00:01]} 53. a6 {[%emt 0:00:00]} 1-0

[Event "Paracin Open 2022"]
[Site "Paracin"]
[Date "2022.07.09"]
[Round "3.9"]
[White "Rohith Krishna S"]
[Black "Neelash Saha"]
[Result "0-1"]
[ECO "A05"]
[WhiteElo "2326"]
[BlackElo "2446"]
[Annotator "RC"]
[PlyCount "208"]
[EventDate "2022.07.08"]
[EventCountry "SRB"]
[SourceTitle "playchess.com"]
[Source "ChessBase"]
[SourceQuality "1"]
[TimeControl "5400+30"]

1. Nf3 {[%emt 0:00:21]} Nf6 {[%emt 0:00:07]} 2. g3 {[%emt 0:00:06]} b5 {[%emt 0:00:13]} 3. Bg2 {[%emt 0:00:07]} Bb7 {[%emt 0:00:04]} 4. O-O {[%emt 0:00:09]} e6 {[%emt 0:00:04]} 5. d3 {[%emt 0:00:23]} d5 {[%emt 0:00:26]} 6. c4 {[%emt 0:01:06]} dxc4 {[%emt 0:02:47]} 7. dxc4 {[%emt 0:00:09]} Qxd1 {[%emt 0:00:12]} 8. Rxd1 {[%emt 0:00:05]} b4 {[%emt 0:01:50]} 9. a3 {[%emt 0:15:00]} Nbd7 {[%emt 0:16:05]} 10. axb4 {[%emt 0:07:52]} Bxb4 {[%emt 0:00:37]} 11. Na3 {[%emt 0:01:17]} a6 {[%emt 0:12:12]} 12. Nc2 {[%emt 0:11:31]} Be7 {[%emt 0:00:12]} 13. Nfd4 {[%emt 0:00:57]} O-O-O {[%emt 0:00:27]} 14. Nb3 {[%emt 0:08:40]} Bxg2 {[%emt 0:21:41]} 15. Kxg2 {[%emt 0:00:10]} Ne5 {[%emt 0:00:09]} 16. Rxd8+ {[%emt 0:10:53]} Rxd8 {[%emt 0:00:33]} 17. c5 {[%emt 0:00:27]} Nfd7 {[%emt 0:03:07]} 18. f4 {[%emt 0:04:23]} Nc6 {[%emt 0:00:50]} 19. Be3 {[%emt 0:02:12]} Kb7 {[%emt 0:00:35]} 20. Na3 {[%emt 0:03:47]} Nb4 {[%emt 0:05:27]} 21. Na5+ {[%emt 0:03:19]} Kc8 {[%emt 0:00:35]} 22. Bd2 {[%emt 0:01:08]} Nd5 {[%emt 0:11:22]} 23. Nc6 {[%emt 0:00:38]} Re8 {[%emt 0:00:05]} 24. b4 {[%emt 0:00:09]} Bf6 {[%emt 0:04:23]} 25. Ra2 {[%emt 0:01:38]} Ne7 {[%emt 0:01:06]} 26. Nxe7+ {[%emt 0:00:31]} Rxe7 {[%emt 0:00:04]} 27. e4 {[%emt 0:01:45]} Re8 {[%emt 0:00:55]} 28. e5 {[%emt 0:01:29]} Be7 {[%emt 0:00:06]} 29. Nc2 {[%emt 0:00:12]} Nb8 {[%emt 0:00:20]} 30. Nd4 {[%emt 0:00:47]} Rd8 {[%emt 0:00:59]} 31. Bc3 {[%emt 0:00:40]} Kb7 {[%emt 0:01:14]} 32. Kf2 {[%emt 0:02:06]} a5 {[%emt 0:07:53]} 33. Ra4 {[%emt 0:09:59]} axb4 {[%emt 0:03:18]} 34. Rxb4+ {[%emt 0:00:04]} Kc8 {[%emt 0:00:57]} 35. Rc4 {[%emt 0:04:52]} Rd5 {[%emt 0:01:52]} 36. Nb3 {[%emt 0:00:06]} Nc6 {[%emt 0:00:17]} 37. Ke3 {[%emt 0:00:27]} Kb7 {[%emt 0:00:17]} 38. Ke4 {[%emt 0:00:55]} Ka6 {[%emt 0:00:20]} 39. Nd4 {[%emt 0:02:11]} Nxd4 {[%emt 0:01:24]} 40. Bxd4 {[%emt 0:00:04]} Kb5 {[%emt 0:00:30]} 41. Rc1 {[%emt 0:00:04]} Kc6 {[%emt 0:01:09]} 42. Ra1 {[%emt 0:00:37]} h5 {[%emt 0:01:24]} 43. Ra6+ {[%emt 0:01:18]} Kb5 {[%emt 0:00:05]} 44. Ra8 {[%emt 0:02:52]} Rd8 {[%emt 0:00:05]} 45. Ra2 {[%emt 0:00:36]} g6 {[%emt 0:01:12]} 46. h3 {[%emt 0:00:05]} Bxc5 {[%emt 0:00:29]} 47. Bxc5 {[%emt 0:00:05]} Kxc5 {[%emt 0:00:03]} 48. Rc2+ {[%emt 0:00:04]} Kb6 {[%emt 0:00:03]} 49. Rb2+ {[%emt 0:00:04]} Kc6 {[%emt 0:00:16]} 50. Rc2+ {[%emt 0:00:06]} Kd7 {[%emt 0:00:28]} 51. g4 {[%emt 0:00:17]} hxg4 {[%emt 0:00:37]} 52. hxg4 {[%emt 0:00:06]} Ra8 {[%emt 0:00:22]} 53. Rd2+ {[%emt 0:00:09]} Ke7 {[%emt 0:00:13]} 54. Rc2 {[%emt 0:00:05]} Ra4+ {[%emt 0:00:03]} 55. Ke3 {[%emt 0:01:31]} Kd7 {[%emt 0:00:04]} 56. Rd2+ {[%emt 0:01:19]} Kc8 {[%emt 0:00:05]} 57. Rf2 {[%emt 0:01:09]} c6 {[%emt 0:00:35]} 58. f5 {[%emt 0:01:30]} Rxg4 {[%emt 0:00:17]} 59. fxe6 {[%emt 0:00:04]} fxe6 {[%emt 0:00:04]} 60. Rf6 {[%emt 0:00:16]} Kd7 {[%emt 0:00:13]} 61. Rf7+ {[%emt 0:00:08]} Kd8 {[%emt 0:00:13]} 62. Rf8+ {[%emt 0:02:24]} Ke7 {[%emt 0:00:05]} 63. Ra8 {[%emt 0:00:06]} c5 {[%emt 0:00:34]} 64. Ra7+ {[%emt 0:00:40]} Kd8 {[%emt 0:00:09]} 65. Kf3 {[%emt 0:00:05]} Rg1 {[%emt 0:01:01]} 66. Ra6 {[%emt 0:00:16]} Kd7 {[%emt 0:00:07]} 67. Rd6+ {[%emt 0:00:05]} Ke7 {[%emt 0:00:04]} 68. Rc6 {[%emt 0:00:36]} Rc1 {[%emt 0:00:09]} 69. Rc7+ {[%emt 0:00:13]} Kd8 {[%emt 0:00:51]} 70. Rg7 {[%emt 0:00:19]} Re1 {[%emt 0:00:32]} 71. Kf4 {[%emt 0:00:10]} c4 {[%emt 0:00:27]} 72. Rxg6 {[%emt 0:00:12]} Kd7 {[%emt 0:00:04]} 73. Rg7+ {[%emt 0:00:23]} Kc6 {[%emt 0:00:20]} 74. Rg8 {[%emt 0:00:30]} Rc1 {[%emt 0:08:09]} 75. Ke4 {[%emt 0:00:51]} Rh1 {[%emt 0:00:30]} 76. Rg6 {[%emt 0:01:15]} Rh4+ {[%emt 0:00:07]} 77. Ke3 {[%emt 0:01:17]} Kd5 {[%emt 0:00:06]} 78. Rg5 {[%emt 0:00:03]} Re4+ {[%emt 0:00:16]} 79. Kd2 {[%emt 0:00:06]} Rxe5 {[%emt 0:00:07]} 80. Rg8 {[%emt 0:00:10]} Kd4 {[%emt 0:00:35]} 81. Rg4+ {[%emt 0:00:18]} Re4 {[%emt 0:00:06]} 82. Rg8 {[%emt 0:00:05]} c3+ {[%emt 0:00:34]} 83. Kd1 {[%emt 0:00:13]} Kd3 {[%emt 0:00:15]} 84. Rd8+ {[%emt 0:00:04]} Rd4 {[%emt 0:00:03]} 85. Re8 {[%emt 0:00:04]} Rh4 {[%emt 0:01:26]} 86. Rd8+ {[%emt 0:00:06]} Kc4 {[%emt 0:00:05]} 87. Rc8+ {[%emt 0:00:03]} Kb3 {[%emt 0:00:05]} 88. Rb8+ {[%emt 0:00:55]} Rb4 {[%emt 0:00:07]} 89. Rh8 {[%emt 0:00:04]} Kb2 {[%emt 0:00:10]} 90. Rh2+ {[%emt 0:00:06]} Kb1 {[%emt 0:00:06]} 91. Rh1 {[%emt 0:00:07]} c2+ {[%emt 0:00:23]} 92. Kd2+ {[%emt 0:00:03]} Kb2 {[%emt 0:00:02]} 93. Re1 {[%emt 0:00:05]} Rb6 {[%emt 0:00:15]} 94. Rh1 {[%emt 0:00:11]} Rd6+ {[%emt 0:00:06]} 95. Ke3 {[%emt 0:00:08]} c1=Q+ {[%emt 0:00:06]} 96. Rxc1 {[%emt 0:00:04]} Kxc1 {[%emt 0:00:04]} 97. Ke4 {[%emt 0:00:02]} Rd5 {[%emt 0:00:06]} 98. Kf3 {[%emt 0:00:05]} Kd2 {[%emt 0:00:04]} 99. Kg2 {[%emt 0:00:03]} e5 {[%emt 0:00:04]} 100. Kf3 {[%emt 0:00:03]} Kd3 {[%emt 0:00:04]} 101. Kg2 {[%emt 0:00:04]} e4 {[%emt 0:00:04]} 102. Kf2 {[%emt 0:00:03]} e3+ {[%emt 0:00:03]} 103. Ke1 {[%emt 0:00:03]} Rf5 {[%emt 0:00:04]} 104. Kd1 {[%emt 0:00:03]} Rf1# {[%emt 0:00:03]} 0-1

[Event "Paracin Open 2022"]
[Site "Paracin"]
[Date "2022.07.09"]
[Round "3.10"]
[White "Nogerbek, Kazybek"]
[Black "Ohanyan, Emin"]
[Result "1-0"]
[ECO "A11"]
[WhiteElo "2437"]
[BlackElo "2354"]
[Annotator "RC"]
[PlyCount "97"]
[EventDate "2022.07.08"]
[EventCountry "SRB"]
[SourceTitle "playchess.com"]
[Source "ChessBase"]
[SourceQuality "1"]
[TimeControl "5400+30"]

1. Nf3 {[%emt 0:00:08]} d5 {[%emt 0:00:20]} 2. e3 {[%emt 0:00:18]} Nf6 {[%emt 0:13:37]} 3. c4 {[%emt 0:00:53]} e6 {[%emt 0:02:00]} 4. Nc3 {[%emt 0:00:41]} Nbd7 {[%emt 0:04:38]} 5. b3 {[%emt 0:02:08]} c6 {[%emt 0:02:04]} 6. Bb2 {[%emt 0:00:32]} e5 {[%emt 0:16:02]} 7. Be2 {[%emt 0:07:12]} Bb4 {[%emt 0:06:50]} 8. a3 {[%emt 0:01:31]} Bd6 {[%emt 0:00:15]} 9. d4 {[%emt 0:05:51]} e4 {[%emt 0:00:39]} 10. Nd2 {[%emt 0:00:14]} Nf8 {[%emt 0:06:04]} 11. b4 {[%emt 0:02:40]} Ng6 {[%emt 0:02:18]} 12. Qb3 {[%emt 0:03:47]} Be6 {[%emt 0:00:27]} 13. a4 {[%emt 0:01:45]} O-O {[%emt 0:06:21]} 14. b5 {[%emt 0:01:35]} Qd7 {[%emt 0:07:37]} 15. a5 {[%emt 0:03:28]} dxc4 {[%emt 0:10:35]} 16. Bxc4 {[%emt 0:01:50]} Bxc4 {[%emt 0:00:57]} 17. Nxc4 {[%emt 0:01:22]} Bc7 {[%emt 0:02:49]} 18. Nd2 {[%emt 0:09:41]} Qg4 {[%emt 0:01:13]} 19. g3 {[%emt 0:00:34]} Qf5 {[%emt 0:01:27]} 20. h3 {[%emt 0:04:17]} h5 {[%emt 0:00:12]} 21. a6 {[%emt 0:01:52]} Rab8 {[%emt 0:02:02]} 22. Qc2 {[%emt 0:03:13]} cxb5 {[%emt 0:03:39]} 23. Ncxe4 {[%emt 0:01:36]} Nxe4 {[%emt 0:01:27]} 24. Qxe4 {[%emt 0:00:23]} Qd7 {[%emt 0:00:39]} 25. axb7 {[%emt 0:01:39]} Rfe8 {[%emt 0:00:02]} 26. Qf3 {[%emt 0:00:50]} Bb6 {[%emt 0:00:39]} 27. Nb3 {[%emt 0:03:48]} Rxb7 {[%emt 0:00:25]} 28. Qxh5 {[%emt 0:01:08]} Qc6 {[%emt 0:01:05]} 29. O-O {[%emt 0:10:25]} Qc2 {[%emt 0:02:51]} 30. Qd5 {[%emt 0:00:40]} Ree7 {[%emt 0:03:34]} 31. Rac1 {[%emt 0:07:58]} Qxb2 {[%emt 0:00:04]} 32. Rc8+ {[%emt 0:00:05]} Nf8 {[%emt 0:00:02]} 33. Nc5 {[%emt 0:00:07]} Rbc7 {[%emt 0:02:52]} 34. Rb8 {[%emt 0:00:11]} Bxc5 {[%emt 0:00:38]} 35. dxc5 {[%emt 0:00:02]} g6 {[%emt 0:00:58]} 36. Qa8 {[%emt 0:02:11]} Qg7 {[%emt 0:00:03]} 37. Rd1 {[%emt 0:01:46]} Red7 {[%emt 0:01:02]} 38. Rd6 {[%emt 0:01:14]} Rxd6 {[%emt 0:00:32]} 39. cxd6 {[%emt 0:00:02]} Rd7 {[%emt 0:00:28]} 40. Qc6 {[%emt 0:00:19]} Qa1+ {[%emt 0:00:31]} 41. Kg2 {[%emt 0:00:14]} Kg7 {[%emt 0:00:30]} 42. Rxf8 {[%emt 0:00:27]} Kxf8 {[%emt 0:00:06]} 43. Qxd7 {[%emt 0:00:05]} Qe5 {[%emt 0:00:44]} 44. Qc8+ {[%emt 0:07:41]} Kg7 {[%emt 0:00:04]} 45. Qc6 {[%emt 0:00:52]} Kf6 {[%emt 0:01:05]} 46. e4 {[%emt 0:01:08]} b4 {[%emt 0:00:32]} 47. d7+ {[%emt 0:00:22]} Ke7 {[%emt 0:00:01]} 48. Qc8 {[%emt 0:00:06]} Qxe4+ {[%emt 0:00:09]} 49. Kh2 {[%emt 0:00:06]} 1-0

[Event "Paracin Open 2022"]
[Site "Paracin"]
[Date "2022.07.09"]
[Round "3.11"]
[White "Srihari L R"]
[Black "Isik, Alparslan"]
[Result "1/2-1/2"]
[ECO "E06"]
[WhiteElo "2431"]
[BlackElo "2341"]
[Annotator "RC"]
[PlyCount "59"]
[EventDate "2022.07.08"]
[EventCountry "SRB"]
[SourceTitle "playchess.com"]
[Source "ChessBase"]
[SourceQuality "1"]
[TimeControl "5400+30"]

1. d4 {[%emt 0:00:23]} Nf6 {[%emt 0:00:07]} 2. c4 {[%emt 0:00:17]} e6 {[%emt 0:00:06]} 3. g3 {[%emt 0:00:29]} d5 {[%emt 0:00:11]} 4. Bg2 {[%emt 0:00:09]} Be7 {[%emt 0:00:47]} 5. Nf3 {[%emt 0:00:28]} c6 {[%emt 0:03:25]} 6. O-O {[%emt 0:02:20]} O-O {[%emt 0:01:44]} 7. Nc3 {[%emt 0:00:18]} b6 {[%emt 0:02:48]} 8. Ne5 {[%emt 0:00:20]} Ba6 {[%emt 0:03:39]} 9. Re1 {[%emt 0:00:29]} Bxc4 {[%emt 0:07:30]} 10. Nxc4 {[%emt 0:00:09]} dxc4 {[%emt 0:00:02]} 11. e3 {[%emt 0:00:02]} Nd5 {[%emt 0:02:39]} 12. a4 {[%emt 0:00:09]} Bb4 {[%emt 0:07:35]} 13. Bd2 {[%emt 0:13:36]} Nd7 {[%emt 0:05:15]} 14. Qe2 {[%emt 0:07:20]} b5 {[%emt 0:02:22]} 15. axb5 {[%emt 0:03:49]} Bxc3 {[%emt 0:00:09]} 16. bxc3 {[%emt 0:00:15]} cxb5 {[%emt 0:00:07]} 17. e4 {[%emt 0:00:11]} N5b6 {[%emt 0:02:11]} 18. e5 {[%emt 0:04:04]} Nd5 {[%emt 0:03:48]} 19. Bxd5 {[%emt 0:01:28]} exd5 {[%emt 0:00:05]} 20. e6 {[%emt 0:01:18]} fxe6 {[%emt 0:03:07]} 21. Qxe6+ {[%emt 0:00:07]} Kh8 {[%emt 0:00:07]} 22. Qxd5 {[%emt 0:00:05]} a6 {[%emt 0:04:06]} 23. Bg5 {[%emt 0:00:15]} Nf6 {[%emt 0:05:32]} 24. Qxd8 {[%emt 0:04:56]} Rfxd8 {[%emt 0:00:07]} 25. Bxf6 {[%emt 0:10:59]} gxf6 {[%emt 0:00:02]} 26. Ra5 {[%emt 0:00:14]} Rd6 {[%emt 0:01:47]} 27. Re7 {[%emt 0:04:26]} Rc8 {[%emt 0:03:07]} 28. Kf1 {[%emt 0:01:25]} Rcc6 {[%emt 0:06:03]} 29. Rb7 {[%emt 0:18:22]} Rb6 {[%emt 0:01:30]} 30. Ra7 {[%emt 0:00:58]} 1/2-1/2

[Event "Paracin Open 2022"]
[Site "Paracin"]
[Date "2022.07.09"]
[Round "3.12"]
[White "Kadam Om Manish"]
[Black "Samant Aditya S"]
[Result "0-1"]
[ECO "B70"]
[WhiteElo "2037"]
[BlackElo "2431"]
[Annotator "RC"]
[PlyCount "72"]
[EventDate "2022.07.08"]
[EventCountry "SRB"]
[SourceTitle "playchess.com"]
[Source "ChessBase"]
[SourceQuality "1"]
[TimeControl "5400+30"]

1. e4 {[%emt 0:03:42]} c5 {[%emt 0:00:05]} 2. Nf3 {[%emt 0:00:06]} d6 {[%emt 0:00:05]} 3. d4 {[%emt 0:00:16]} cxd4 {[%emt 0:00:05]} 4. Nxd4 {[%emt 0:00:04]} Nf6 {[%emt 0:00:07]} 5. Nc3 {[%emt 0:00:02]} Nc6 {[%emt 0:00:09]} 6. g3 {[%emt 0:00:04]} g6 {[%emt 0:00:37]} 7. Bg2 {[%emt 0:00:04]} Nxd4 {[%emt 0:00:23]} 8. Qxd4 {[%emt 0:00:06]} Bg7 {[%emt 0:00:06]} 9. O-O {[%emt 0:00:04]} O-O {[%emt 0:00:10]} 10. Qd3 {[%emt 0:00:05]} Nd7 {[%emt 0:01:07]} 11. Nd5 {[%emt 0:02:49]} Nc5 {[%emt 0:01:28]} 12. Qe2 {[%emt 0:01:16]} e6 {[%emt 0:01:08]} 13. Nb4 {[%emt 0:11:07]} Bd7 {[%emt 0:10:50]} 14. c4 {[%emt 0:07:27]} Qa5 {[%emt 0:20:42]} 15. Nd3 {[%emt 0:05:45]} Nb3 {[%emt 0:06:59]} 16. axb3 {[%emt 0:03:27]} Qxa1 {[%emt 0:00:14]} 17. e5 {[%emt 0:00:19]} dxe5 {[%emt 0:14:49]} 18. Bd2 {[%emt 0:11:29]} Qa2 {[%emt 0:06:17]} 19. Bb4 {[%emt 0:02:06]} Rfd8 {[%emt 0:09:11]} 20. Bxb7 {[%emt 0:02:40]} Qxb3 {[%emt 0:03:26]} 21. Bxa8 {[%emt 0:02:48]} Rxa8 {[%emt 0:00:02]} 22. Rc1 {[%emt 0:08:35]} Bc6 {[%emt 0:01:25]} 23. Rc3 {[%emt 0:02:47]} Qa2 {[%emt 0:00:14]} 24. Ne1 {[%emt 0:10:52]} e4 {[%emt 0:03:02]} 25. Rc2 {[%emt 0:00:12]} Rd8 {[%emt 0:02:27]} 26. Rd2 {[%emt 0:01:11]} Rxd2 {[%emt 0:01:09]} 27. Qxd2 {[%emt 0:00:06]} h5 {[%emt 0:01:21]} 28. Bc5 {[%emt 0:03:37]} Qxc4 {[%emt 0:03:45]} 29. Bxa7 {[%emt 0:00:11]} Bb5 {[%emt 0:00:25]} 30. h4 {[%emt 0:00:33]} Qf1+ {[%emt 0:00:08]} 31. Kh2 {[%emt 0:00:01]} Be2 {[%emt 0:00:29]} 32. Qd8+ {[%emt 0:13:09]} Kh7 {[%emt 0:00:10]} 33. Qa8 {[%emt 0:10:00]} Qxe1 {[%emt 0:00:24]} 34. Qxe4 {[%emt 0:00:00]} Qd1 {[%emt 0:00:10]} 35. Qh1 {[%emt 0:00:00]} Bxb2 {[%emt 0:00:33]} 36. Qxd1 {[%emt 0:00:00]} Bxd1 {[%emt 0:00:02]} 0-1